[Event "*** Titled Tuesday 3|2 Blitz"]
[Site "Chess.com"]
[Date "2017.05.02"]
[Round "6"]
[White "1lec"]
[Black "saraswathii"]
[Result "0-1"]
[WhiteElo "2060"]
[BlackElo "2223"]
[TimeControl "180+2"]
[EndTime "14:14:37 PDT"]
[Termination "saraswathii won by resignation"]

1. e4 {[%clk 0:03:02]} 1... c5 {[%clk 0:02:44.1]} 2. Nf3 {[%clk 0:03:02.3]} 2...
e6 {[%clk 0:02:38.8]} 3. g3 {[%clk 0:03:02.7]} 3... d5 {[%clk 0:02:36.8]} 4.
exd5 {[%clk 0:03:04.7]} 4... exd5 {[%clk 0:02:35.5]} 5. d4 {[%clk 0:03:05.9]}
5... Nf6 {[%clk 0:02:36.4]} 6. Bg2 {[%clk 0:03:04.6]} 6... Be6 {[%clk
0:02:20.8]} 7. O-O {[%clk 0:03:05]} 7... Nc6 {[%clk 0:02:21.9]} 8. Nc3 {[%clk
0:02:58.6]} 8... h6 {[%clk 0:02:18.8]} 9. Re1 {[%clk 0:02:54.1]} 9... Be7 {[%clk
0:02:16]} 10. Bf4 {[%clk 0:02:28.4]} 10... O-O {[%clk 0:02:13.1]} 11. dxc5
{[%clk 0:02:05.6]} 11... Bxc5 {[%clk 0:02:04.1]} 12. Nb5 {[%clk 0:02:06.4]}
12... Qb6 {[%clk 0:01:56.9]} 13. Nc7 {[%clk 0:01:58.5]} 13... Bxf2+ {[%clk
0:01:56.8]} 14. Kh1 {[%clk 0:01:59.9]} 14... Bxe1 {[%clk 0:01:53.3]} 15. Nxa8
{[%clk 0:02:00.9]} 15... Rxa8 {[%clk 0:01:53]} 16. Qxe1 {[%clk 0:02:02]} 16...
Re8 {[%clk 0:01:53.3]} 17. Ne5 {[%clk 0:01:47.6]} 17... Bf5 {[%clk 0:01:48.4]}
18. Qe2 {[%clk 0:00:47.5]} 18... Nxe5 {[%clk 0:01:41]} 19. Bxe5 {[%clk
0:00:47.9]} 19... Ng4 {[%clk 0:01:41.7]} 0-1

[Event "*** Titled Tuesday 3|2 Blitz"]
[Site "Chess.com"]
[Date "2017.05.02"]
[Round "6"]
[White "Aygehovit1992"]
[Black "djogrodek1"]
[Result "1-0"]
[WhiteElo "2523"]
[BlackElo "2421"]
[TimeControl "180+2"]
[EndTime "14:14:58 PDT"]
[Termination "Aygehovit1992 won by resignation"]

1. e4 {[%clk 0:03:02]} 1... c6 {[%clk 0:02:52.7]} 2. d4 {[%clk 0:03:01.2]} 2...
d5 {[%clk 0:02:53.5]} 3. e5 {[%clk 0:03:02.9]} 3... Bf5 {[%clk 0:02:53.9]} 4.
Nf3 {[%clk 0:03:04.6]} 4... e6 {[%clk 0:02:53.3]} 5. Be2 {[%clk 0:03:06.2]} 5...
c5 {[%clk 0:02:54.4]} 6. Be3 {[%clk 0:03:03.4]} 6... cxd4 {[%clk 0:02:55.3]} 7.
Nxd4 {[%clk 0:03:04.2]} 7... Ne7 {[%clk 0:02:57]} 8. Nd2 {[%clk 0:03:04.9]} 8...
Nbc6 {[%clk 0:02:52.9]} 9. N2f3 {[%clk 0:03:06.2]} 9... Bg6 {[%clk 0:02:54.6]}
10. O-O {[%clk 0:03:05.5]} 10... a6 {[%clk 0:02:39.3]} 11. c4 {[%clk 0:02:38.5]}
11... Nxd4 {[%clk 0:02:27.6]} 12. Nxd4 {[%clk 0:02:31.7]} 12... Nf5 {[%clk
0:02:18.2]} 13. cxd5 {[%clk 0:02:00]} 13... Nxe3 {[%clk 0:02:04.6]} 14. Qa4+
{[%clk 0:01:46.1]} 14... b5 {[%clk 0:01:42.1]} 15. Nxb5 {[%clk 0:01:44.7]} 15...
Qd7 {[%clk 0:01:22.5]} 16. fxe3 {[%clk 0:01:21.6]} 16... Rc8 {[%clk 0:00:59.7]}
17. dxe6 {[%clk 0:01:18.2]} 17... fxe6 {[%clk 0:01:00]} 18. Rad1 {[%clk
0:01:17.2]} 18... Qc6 {[%clk 0:00:55.8]} 19. Rc1 {[%clk 0:01:14.6]} 19... Qxc1
{[%clk 0:00:54.9]} 20. Nc7+ {[%clk 0:01:02.1]} 1-0

[Event "*** Titled Tuesday 3|2 Blitz"]
[Site "Chess.com"]
[Date "2017.05.02"]
[Round "6"]
[White "aa175"]
[Black "XiaoKangZhong"]
[Result "0-1"]
[WhiteElo "1793"]
[BlackElo "2016"]
[TimeControl "180+2"]
[EndTime "14:15:01 PDT"]
[Termination "XiaoKangZhong won by resignation"]

1. d4 {[%clk 0:03:02]} 1... Nf6 {[%clk 0:03:00.2]} 2. Nf3 {[%clk 0:03:02.1]}
2... g6 {[%clk 0:03:00.6]} 3. g3 {[%clk 0:02:59.8]} 3... Bg7 {[%clk 0:03:00.2]}
4. Bg2 {[%clk 0:03:01.4]} 4... O-O {[%clk 0:03:00.7]} 5. O-O {[%clk 0:03:02.7]}
5... d5 {[%clk 0:03:00.5]} 6. c4 {[%clk 0:03:01.1]} 6... e6 {[%clk 0:03:00.7]}
7. Nc3 {[%clk 0:03:02.2]} 7... Ne4 {[%clk 0:02:59.8]} 8. Nxe4 {[%clk 0:02:55.8]}
8... dxe4 {[%clk 0:03:00.6]} 9. Ne5 {[%clk 0:02:57]} 9... f6 {[%clk 0:02:52.9]}
10. Ng4 {[%clk 0:02:56.2]} 10... h5 {[%clk 0:02:31.7]} 11. Nh6+ {[%clk
0:02:55.7]} 11... Kh7 {[%clk 0:02:28]} 12. Qd2 {[%clk 0:02:54.6]} 12... f5
{[%clk 0:02:19.7]} 13. Rd1 {[%clk 0:02:42.6]} 13... Rf6 {[%clk 0:02:00]} 14. h4
{[%clk 0:02:36]} 14... Qf8 {[%clk 0:01:58]} 15. Qf4 {[%clk 0:02:13.4]} 15... Na6
{[%clk 0:01:42.3]} 16. Nxf5 {[%clk 0:01:54.3]} 16... exf5 {[%clk 0:01:37.6]} 17.
Be3 {[%clk 0:01:51.2]} 17... Re6 {[%clk 0:01:24.3]} 18. d5 {[%clk 0:01:45.9]}
18... Re8 {[%clk 0:01:17.2]} 19. d6 {[%clk 0:01:23.1]} 19... cxd6 {[%clk
0:01:08.3]} 20. Rxd6 {[%clk 0:01:11.8]} 20... Be5 {[%clk 0:00:59]} 0-1

[Event "*** Titled Tuesday 3|2 Blitz"]
[Site "Chess.com"]
[Date "2017.05.02"]
[Round "6"]
[White "Gabix_94"]
[Black "Vrolijk"]
[Result "0-1"]
[WhiteElo "2452"]
[BlackElo "2345"]
[TimeControl "180+2"]
[EndTime "14:15:03 PDT"]
[Termination "Vrolijk won by resignation"]

1. e4 {[%clk 0:03:02]} 1... e6 {[%clk 0:03:00.1]} 2. d4 {[%clk 0:03:02]} 2... d5
{[%clk 0:03:00.7]} 3. Nc3 {[%clk 0:03:03.4]} 3... Nf6 {[%clk 0:03:00.4]} 4. Bg5
{[%clk 0:03:02.6]} 4... Be7 {[%clk 0:02:55.2]} 5. e5 {[%clk 0:03:03.8]} 5...
Nfd7 {[%clk 0:02:56.1]} 6. h4 {[%clk 0:03:05.4]} 6... h6 {[%clk 0:02:52.5]} 7.
Bxe7 {[%clk 0:03:06.1]} 7... Qxe7 {[%clk 0:02:54.4]} 8. f4 {[%clk 0:03:07.6]}
8... a6 {[%clk 0:02:54.3]} 9. Qd2 {[%clk 0:03:08.8]} 9... c5 {[%clk 0:02:55.3]}
10. dxc5 {[%clk 0:03:10]} 10... Nc6 {[%clk 0:02:55.9]} 11. O-O-O {[%clk
0:03:11.4]} 11... Nxc5 {[%clk 0:02:55.1]} 12. h5 {[%clk 0:03:12.5]} 12... b5
{[%clk 0:02:50.9]} 13. Nf3 {[%clk 0:03:13.4]} 13... Bd7 {[%clk 0:02:46.3]} 14.
Nd4 {[%clk 0:03:13.9]} 14... Rc8 {[%clk 0:02:39.2]} 15. Rh3 {[%clk 0:03:10.2]}
15... b4 {[%clk 0:02:30.6]} 16. Nce2 {[%clk 0:03:10.3]} 16... Ne4 {[%clk
0:02:30.2]} 17. Qe1 {[%clk 0:03:11.6]} 17... a5 {[%clk 0:02:28.1]} 18. Kb1
{[%clk 0:03:12.6]} 18... a4 {[%clk 0:02:25.1]} 19. Nxc6 {[%clk 0:03:12.8]} 19...
Bxc6 {[%clk 0:02:23]} 20. Nd4 {[%clk 0:03:14.7]} 20... O-O {[%clk 0:01:59]} 21.
f5 {[%clk 0:03:13.4]} 21... a3 {[%clk 0:01:53.9]} 22. Bd3 {[%clk 0:03:08.3]}
22... exf5 {[%clk 0:01:39]} 23. Bxe4 {[%clk 0:02:56.5]} 23... fxe4 {[%clk
0:01:30]} 24. Qg3 {[%clk 0:02:53.5]} 24... f5 {[%clk 0:01:27.4]} 25. Qg6 {[%clk
0:02:35.7]} 25... Qxe5 {[%clk 0:01:12.7]} 26. Rg3 {[%clk 0:02:22.9]} 26... f4
{[%clk 0:01:10.4]} 27. Rb3 {[%clk 0:02:18.5]} 27... Be8 {[%clk 0:01:01.3]} 28.
Qa6 {[%clk 0:02:15.9]} 28... Bxh5 {[%clk 0:01:01.5]} 29. Nc6 {[%clk 0:02:07.6]}
29... Rxc6 {[%clk 0:01:01.1]} 30. Qxc6 {[%clk 0:02:08.7]} 30... Bxd1 {[%clk
0:01:02.3]} 31. Rxb4 {[%clk 0:02:10.6]} 31... e3 {[%clk 0:01:03]} 0-1

[Event "*** Titled Tuesday 3|2 Blitz"]
[Site "Chess.com"]
[Date "2017.05.02"]
[Round "6"]
[White "Alexander_Donchenko"]
[Black "joppie2"]
[Result "1-0"]
[WhiteElo "2519"]
[BlackElo "2516"]
[TimeControl "180+2"]
[EndTime "14:15:30 PDT"]
[Termination "Alexander_Donchenko won by resignation"]

1. d4 {[%clk 0:03:02]} 1... d5 {[%clk 0:03:00.8]} 2. c4 {[%clk 0:02:55.6]} 2...
c6 {[%clk 0:03:02.1]} 3. Nf3 {[%clk 0:02:56.6]} 3... Nf6 {[%clk 0:03:02.6]} 4.
Qc2 {[%clk 0:02:57.3]} 4... dxc4 {[%clk 0:03:00.1]} 5. Qxc4 {[%clk 0:02:59.2]}
5... Bg4 {[%clk 0:03:00.6]} 6. Nc3 {[%clk 0:02:59.3]} 6... Nbd7 {[%clk 0:02:58]}
7. Bf4 {[%clk 0:03:00.4]} 7... e6 {[%clk 0:02:53.5]} 8. e4 {[%clk 0:03:00.9]}
8... Bxf3 {[%clk 0:02:42.3]} 9. gxf3 {[%clk 0:03:02.8]} 9... Be7 {[%clk
0:02:36.8]} 10. O-O-O {[%clk 0:03:00.9]} 10... Nh5 {[%clk 0:02:34.6]} 11. Be3
{[%clk 0:03:00.8]} 11... Bg5 {[%clk 0:02:30.1]} 12. Rg1 {[%clk 0:02:56.5]} 12...
h6 {[%clk 0:02:30.5]} 13. Kb1 {[%clk 0:02:52.5]} 13... O-O {[%clk 0:02:25.1]}
14. e5 {[%clk 0:02:47.5]} 14... Nb6 {[%clk 0:02:23.9]} 15. Qe2 {[%clk 0:02:45]}
15... Nf4 {[%clk 0:02:21]} 16. Bxf4 {[%clk 0:02:44.6]} 16... Bxf4 {[%clk
0:02:21.4]} 17. Qe4 {[%clk 0:02:45.7]} 17... Bg5 {[%clk 0:02:08.5]} 18. Bd3
{[%clk 0:02:42.5]} 18... f5 {[%clk 0:01:54.4]} 19. exf6 {[%clk 0:02:43.4]} 19...
Qxf6 {[%clk 0:01:54.9]} 20. h4 {[%clk 0:02:37.5]} 20... Bf4 {[%clk 0:01:38.4]}
21. Qh7+ {[%clk 0:02:35.7]} 21... Kf7 {[%clk 0:01:38.5]} 22. Rg6 {[%clk
0:02:36.3]} 22... Qxd4 {[%clk 0:01:33.4]} 23. Ne2 {[%clk 0:02:00.6]} 23... Qe5
{[%clk 0:00:50.8]} 24. Nxf4 {[%clk 0:02:01.3]} 24... Qxf4 {[%clk 0:00:21.4]} 25.
Qxg7+ {[%clk 0:01:47.2]} 25... Ke8 {[%clk 0:00:22.4]} 26. Rxe6+ {[%clk
0:01:48.5]} 26... Kd8 {[%clk 0:00:22.1]} 27. Bf5+ {[%clk 0:01:49.6]} 27... Nd5
{[%clk 0:00:19.7]} 28. Qe7+ {[%clk 0:01:43.2]} 1-0

[Event "*** Titled Tuesday 3|2 Blitz"]
[Site "Chess.com"]
[Date "2017.05.02"]
[Round "6"]
[White "RitvarsReimanis"]
[Black "GMAkobianSTL"]
[Result "0-1"]
[WhiteElo "2438"]
[BlackElo "2604"]
[TimeControl "180+2"]
[EndTime "14:15:40 PDT"]
[Termination "GMAkobianSTL won by resignation"]

1. d4 {[%clk 0:03:02]} 1... Nf6 {[%clk 0:02:56]} 2. c4 {[%clk 0:03:03.2]} 2...
b6 {[%clk 0:02:57.4]} 3. Nf3 {[%clk 0:02:59.6]} 3... Bb7 {[%clk 0:02:58.3]} 4.
e3 {[%clk 0:03:01.1]} 4... g6 {[%clk 0:02:58]} 5. Be2 {[%clk 0:03:02.5]} 5...
Bg7 {[%clk 0:02:59.2]} 6. O-O {[%clk 0:03:04.1]} 6... O-O {[%clk 0:03:00.8]} 7.
Ne5 {[%clk 0:03:05.5]} 7... d6 {[%clk 0:03:00.6]} 8. Bf3 {[%clk 0:03:06.7]} 8...
c6 {[%clk 0:03:01.1]} 9. Nd3 {[%clk 0:03:05.2]} 9... Nbd7 {[%clk 0:03:01.7]} 10.
c5 {[%clk 0:02:58.4]} 10... bxc5 {[%clk 0:02:59.1]} 11. dxc5 {[%clk 0:02:58.8]}
11... d5 {[%clk 0:03:00.4]} 12. Nc3 {[%clk 0:02:53.5]} 12... e5 {[%clk
0:02:59.2]} 13. e4 {[%clk 0:02:54.2]} 13... d4 {[%clk 0:03:00]} 14. Ne2 {[%clk
0:02:49.4]} 14... a5 {[%clk 0:02:58.2]} 15. g3 {[%clk 0:02:41.6]} 15... Ba6
{[%clk 0:02:58.8]} 16. Bg2 {[%clk 0:02:41.9]} 16... Qe7 {[%clk 0:02:55.3]} 17.
b3 {[%clk 0:02:40.1]} 17... Nxc5 {[%clk 0:02:43.3]} 18. Nxc5 {[%clk 0:02:33.1]}
18... Qxc5 {[%clk 0:02:43.8]} 19. Bb2 {[%clk 0:02:31.6]} 19... Qb5 {[%clk
0:02:37.5]} 20. Re1 {[%clk 0:02:31.7]} 20... c5 {[%clk 0:02:38.3]} 21. Bf1
{[%clk 0:02:30.6]} 21... Qb7 {[%clk 0:02:38.4]} 22. f3 {[%clk 0:02:31.6]} 22...
c4 {[%clk 0:02:39.3]} 23. Ba3 {[%clk 0:02:32]} 23... c3 {[%clk 0:02:39.3]} 24.
Bxf8 {[%clk 0:02:30.5]} 24... Bxf8 {[%clk 0:02:40.6]} 25. Nc1 {[%clk 0:02:22]}
25... Bxf1 {[%clk 0:02:37.2]} 26. Rxf1 {[%clk 0:02:22.8]} 26... Nd7 {[%clk
0:02:37.3]} 27. Nd3 {[%clk 0:02:21.3]} 27... Qb5 {[%clk 0:02:37.3]} 28. Qc2
{[%clk 0:02:13.5]} 28... Bd6 {[%clk 0:02:37.7]} 29. Rad1 {[%clk 0:02:03.3]}
29... Nc5 {[%clk 0:02:38.1]} 30. Nxc5 {[%clk 0:02:02.6]} 30... Bxc5 {[%clk
0:02:37.8]} 31. Rd3 {[%clk 0:02:03.7]} 31... a4 {[%clk 0:02:38.7]} 32. f4 {[%clk
0:01:50.5]} 32... axb3 {[%clk 0:02:37.5]} 33. axb3 {[%clk 0:01:45.7]} 33... Ra2
{[%clk 0:02:10.4]} 34. Qxa2 {[%clk 0:01:32.4]} 34... Qxd3 {[%clk 0:02:10.8]} 35.
b4 {[%clk 0:01:22.6]} 35... Qe3+ {[%clk 0:02:04.5]} 36. Rf2 {[%clk 0:01:20.8]}
36... d3 {[%clk 0:01:58]} 37. bxc5 {[%clk 0:01:11.2]} 37... c2 {[%clk
0:01:54.5]} 38. fxe5 {[%clk 0:01:01.4]} 38... c1=Q+ {[%clk 0:01:54.9]} 39. Kg2
{[%clk 0:01:01.8]} 39... Qxe4+ {[%clk 0:01:48.8]} 0-1

[Event "*** Titled Tuesday 3|2 Blitz"]
[Site "Chess.com"]
[Date "2017.05.02"]
[Round "6"]
[White "ItalianMachine"]
[Black "AdrianaNikolova"]
[Result "1-0"]
[WhiteElo "2202"]
[BlackElo "2309"]
[TimeControl "180+2"]
[EndTime "14:16:02 PDT"]
[Termination "ItalianMachine won by resignation"]

1. e4 {[%clk 0:03:02]} 1... c5 {[%clk 0:02:40.9]} 2. Nc3 {[%clk 0:02:55.8]} 2...
Nc6 {[%clk 0:02:40.2]} 3. g3 {[%clk 0:02:55.6]} 3... g6 {[%clk 0:02:39.1]} 4.
Bg2 {[%clk 0:02:57.2]} 4... Bg7 {[%clk 0:02:41]} 5. Nge2 {[%clk 0:02:53.4]} 5...
Rb8 {[%clk 0:02:42.9]} 6. O-O {[%clk 0:02:44.9]} 6... b5 {[%clk 0:02:42.3]} 7.
d3 {[%clk 0:02:46.5]} 7... b4 {[%clk 0:02:42.8]} 8. Nd5 {[%clk 0:02:45.1]} 8...
e6 {[%clk 0:02:43.9]} 9. Ne3 {[%clk 0:02:45.8]} 9... Nge7 {[%clk 0:02:45.3]} 10.
f4 {[%clk 0:02:32.9]} 10... O-O {[%clk 0:02:43.8]} 11. g4 {[%clk 0:02:10.5]}
11... f5 {[%clk 0:02:41]} 12. h3 {[%clk 0:01:32.5]} 12... d5 {[%clk 0:02:36.8]}
13. e5 {[%clk 0:01:31.8]} 13... d4 {[%clk 0:01:52.1]} 14. Nc4 {[%clk 0:01:10.5]}
14... fxg4 {[%clk 0:01:50.4]} 15. hxg4 {[%clk 0:01:11.2]} 15... Nd5 {[%clk
0:01:51.9]} 16. Ng3 {[%clk 0:00:54.7]} 16... Qh4 {[%clk 0:01:47.9]} 17. Ne4
{[%clk 0:00:54.2]} 17... Ne3 {[%clk 0:01:32.6]} 18. Nxe3 {[%clk 0:00:49.2]}
18... dxe3 {[%clk 0:01:34.5]} 19. Bxe3 {[%clk 0:00:50.3]} 19... Nd4 {[%clk
0:01:33.4]} 20. Nxc5 {[%clk 0:00:47.9]} 20... Nxc2 {[%clk 0:01:19.3]} 21. Qxc2
{[%clk 0:00:45.3]} 21... Qxg4 {[%clk 0:01:20.5]} 22. Qd1 {[%clk 0:00:44.8]}
22... Qg3 {[%clk 0:01:15.8]} 23. Qf3 {[%clk 0:00:44.4]} 23... Qh4 {[%clk
0:01:16.5]} 24. Qh3 {[%clk 0:00:40.3]} 24... Qe7 {[%clk 0:01:15.7]} 25. d4
{[%clk 0:00:41.3]} 25... Rf5 {[%clk 0:01:02.4]} 26. Bf3 {[%clk 0:00:40.4]} 26...
Bd7 {[%clk 0:00:57.3]} 27. Bg4 {[%clk 0:00:41.1]} 27... Rff8 {[%clk 0:00:54.7]}
28. Nxd7 {[%clk 0:00:39.7]} 28... Qxd7 {[%clk 0:00:56.6]} 29. Bxe6+ {[%clk
0:00:40.5]} 1-0

[Event "*** Titled Tuesday 3|2 Blitz"]
[Site "Chess.com"]
[Date "2017.05.02"]
[Round "6"]
[White "ehrenfeld"]
[Black "Rodalquilar"]
[Result "0-1"]
[WhiteElo "2399"]
[BlackElo "2533"]
[TimeControl "180+2"]
[EndTime "14:16:08 PDT"]
[Termination "Rodalquilar won on time"]

1. e4 {[%clk 0:03:02]} 1... e5 {[%clk 0:03:01]} 2. Nc3 {[%clk 0:03:01.9]} 2...
Nf6 {[%clk 0:02:56.1]} 3. f4 {[%clk 0:03:02.4]} 3... d5 {[%clk 0:02:53.4]} 4.
fxe5 {[%clk 0:03:03.1]} 4... Nxe4 {[%clk 0:02:53.3]} 5. Qf3 {[%clk 0:03:03.9]}
5... Nxc3 {[%clk 0:02:52.9]} 6. bxc3 {[%clk 0:03:04.3]} 6... Be7 {[%clk
0:02:53.2]} 7. d4 {[%clk 0:03:04.3]} 7... O-O {[%clk 0:02:53.8]} 8. Bd3 {[%clk
0:03:04.8]} 8... f5 {[%clk 0:02:52.4]} 9. Nh3 {[%clk 0:02:46.6]} 9... c6 {[%clk
0:02:43.8]} 10. Nf4 {[%clk 0:02:45.6]} 10... a5 {[%clk 0:02:43.5]} 11. O-O
{[%clk 0:02:44]} 11... Na6 {[%clk 0:02:44.7]} 12. Qh3 {[%clk 0:02:26.2]} 12...
g6 {[%clk 0:02:36.7]} 13. Bd2 {[%clk 0:02:23.6]} 13... Nc7 {[%clk 0:02:37.5]}
14. c4 {[%clk 0:02:12]} 14... Ne6 {[%clk 0:02:34.9]} 15. cxd5 {[%clk 0:01:39.1]}
15... Nxf4 {[%clk 0:02:36]} 16. Bxf4 {[%clk 0:01:37.5]} 16... Qxd5 {[%clk
0:02:36.9]} 17. Qe3 {[%clk 0:01:15.8]} 17... b5 {[%clk 0:02:35.9]} 18. Rac1
{[%clk 0:01:09.3]} 18... Rd8 {[%clk 0:02:22.9]} 19. c3 {[%clk 0:01:01.6]} 19...
Be6 {[%clk 0:02:16.8]} 20. Bg5 {[%clk 0:00:55.7]} 20... Ra7 {[%clk 0:02:02.5]}
21. Bxe7 {[%clk 0:00:54.2]} 21... Rxe7 {[%clk 0:02:04.4]} 22. h4 {[%clk
0:00:50.1]} 22... c5 {[%clk 0:01:49.8]} 23. Rf4 {[%clk 0:00:45.2]} 23... b4
{[%clk 0:01:34.6]} 24. c4 {[%clk 0:00:23.1]} 24... cxd4 {[%clk 0:01:35.6]} 25.
cxd5 {[%clk 0:00:23.4]} 25... dxe3 {[%clk 0:01:37]} 26. d6 {[%clk 0:00:20]}
26... Ree8 {[%clk 0:01:38.1]} 27. Rc7 {[%clk 0:00:12.3]} 27... Bxa2 {[%clk
0:01:18.7]} 0-1

[Event "*** Titled Tuesday 3|2 Blitz"]
[Site "Chess.com"]
[Date "2017.05.02"]
[Round "6"]
[White "Drags95"]
[Black "DiogenesSinopeus"]
[Result "1-0"]
[WhiteElo "2532"]
[BlackElo "2224"]
[TimeControl "180+2"]
[EndTime "14:16:36 PDT"]
[Termination "Drags95 won on time"]

1. e4 {[%clk 0:03:02]} 1... e5 {[%clk 0:03:01]} 2. Nf3 {[%clk 0:03:02.6]} 2...
Nc6 {[%clk 0:03:02.3]} 3. Bb5 {[%clk 0:03:02.7]} 3... a6 {[%clk 0:03:03.7]} 4.
Ba4 {[%clk 0:03:03.9]} 4... d6 {[%clk 0:03:05.6]} 5. O-O {[%clk 0:03:04.3]} 5...
Bg4 {[%clk 0:03:06.2]} 6. Bxc6+ {[%clk 0:03:00.6]} 6... bxc6 {[%clk 0:03:08.1]}
7. d3 {[%clk 0:02:59.3]} 7... Qf6 {[%clk 0:03:08]} 8. Nbd2 {[%clk 0:02:59.4]}
8... Ne7 {[%clk 0:02:58.3]} 9. c3 {[%clk 0:03:00]} 9... g5 {[%clk 0:02:58.5]}
10. d4 {[%clk 0:02:59.2]} 10... Ng6 {[%clk 0:02:53.6]} 11. Qa4 {[%clk
0:02:59.9]} 11... Bd7 {[%clk 0:02:40.2]} 12. dxe5 {[%clk 0:02:58.5]} 12... dxe5
{[%clk 0:02:36.1]} 13. Nc4 {[%clk 0:02:33.2]} 13... g4 {[%clk 0:02:24.7]} 14.
Bg5 {[%clk 0:02:33.1]} 14... Qe6 {[%clk 0:02:19]} 15. Nfd2 {[%clk 0:02:34.6]}
15... Bc5 {[%clk 0:02:05.8]} 16. Qa5 {[%clk 0:02:33.4]} 16... Bd6 {[%clk
0:01:57]} 17. Rad1 {[%clk 0:02:22.5]} 17... O-O {[%clk 0:01:49.4]} 18. Ne3
{[%clk 0:02:18.2]} 18... Rfb8 {[%clk 0:01:23.8]} 19. Ndc4 {[%clk 0:02:13.8]}
19... Bf8 {[%clk 0:00:58.3]} 20. Qxc7 {[%clk 0:01:39.5]} 20... Be8 {[%clk
0:00:52.8]} 21. Nb6 {[%clk 0:01:24.5]} 21... f6 {[%clk 0:00:31.4]} 22. Nxa8
{[%clk 0:01:19]} 22... Rxa8 {[%clk 0:00:31.2]} 23. Qb7 {[%clk 0:01:06.8]} 23...
Rc8 {[%clk 0:00:20.4]} 24. Bxf6 {[%clk 0:01:07.8]} 24... Bf7 {[%clk 0:00:06.4]}
25. Nf5 {[%clk 0:00:56.1]} 25... Re8 {[%clk 0:00:06.1]} 26. Bg5 {[%clk
0:00:55.3]} 26... Qxa2 {[%clk 0:00:03.6]} 27. Rd7 {[%clk 0:00:52]} 27... Qe6
{[%clk 0:00:02.5]} 28. Bh6 {[%clk 0:00:51.9]} 1-0

[Event "*** Titled Tuesday 3|2 Blitz"]
[Site "Chess.com"]
[Date "2017.05.02"]
[Round "6"]
[White "DrVitman"]
[Black "David_Klein"]
[Result "1-0"]
[WhiteElo "2612"]
[BlackElo "2503"]
[TimeControl "180+2"]
[EndTime "14:16:49 PDT"]
[Termination "DrVitman won by resignation"]

1. d4 {[%clk 0:03:02]} 1... Nf6 {[%clk 0:02:59.4]} 2. c4 {[%clk 0:03:03.5]} 2...
e6 {[%clk 0:03:00.7]} 3. Nf3 {[%clk 0:03:04.9]} 3... d5 {[%clk 0:03:01]} 4. Nc3
{[%clk 0:03:05.7]} 4... Nbd7 {[%clk 0:03:01.4]} 5. Bg5 {[%clk 0:03:06]} 5...
dxc4 {[%clk 0:02:59.6]} 6. e3 {[%clk 0:03:06.6]} 6... a6 {[%clk 0:03:00.5]} 7.
a4 {[%clk 0:03:02.1]} 7... b6 {[%clk 0:03:01.7]} 8. Bxc4 {[%clk 0:03:02.8]} 8...
Bb7 {[%clk 0:03:02.6]} 9. O-O {[%clk 0:03:04.4]} 9... Be7 {[%clk 0:03:03]} 10.
Qe2 {[%clk 0:03:05.6]} 10... c5 {[%clk 0:03:02.6]} 11. Rfd1 {[%clk 0:03:03]}
11... cxd4 {[%clk 0:03:02.2]} 12. Nxd4 {[%clk 0:03:03.1]} 12... O-O {[%clk
0:03:01.9]} 13. Nxe6 {[%clk 0:02:58.3]} 13... fxe6 {[%clk 0:03:01.4]} 14. Bxe6+
{[%clk 0:03:00.2]} 14... Rf7 {[%clk 0:02:31.3]} 15. Bxf6 {[%clk 0:01:57.6]}
15... Bxf6 {[%clk 0:02:02.9]} 16. Qc4 {[%clk 0:01:58.3]} 16... Kh8 {[%clk
0:01:18.2]} 17. Bxf7 {[%clk 0:01:55.3]} 17... Bxc3 {[%clk 0:01:18.9]} 18. bxc3
{[%clk 0:01:49.7]} 18... Qg5 {[%clk 0:01:18.5]} 19. Bd5 {[%clk 0:01:50.8]} 19...
Ne5 {[%clk 0:00:54.2]} 20. Qf4 {[%clk 0:01:39.9]} 20... Qxf4 {[%clk 0:00:42]}
21. exf4 {[%clk 0:01:40.7]} 21... Bxd5 {[%clk 0:00:43.4]} 22. fxe5 {[%clk
0:01:32.2]} 22... Bb3 {[%clk 0:00:40.1]} 23. Rdb1 {[%clk 0:01:32]} 23... Bc4
{[%clk 0:00:37.3]} 24. Rxb6 {[%clk 0:01:32.6]} 24... h6 {[%clk 0:00:39]} 25. e6
{[%clk 0:01:28.6]} 25... Rd8 {[%clk 0:00:39.6]} 26. e7 {[%clk 0:01:26.6]} 26...
Re8 {[%clk 0:00:40.9]} 27. Re1 {[%clk 0:01:26.8]} 27... Kg8 {[%clk 0:00:41.7]}
28. Rb8 {[%clk 0:01:15.9]} 28... Rxb8 {[%clk 0:00:21.9]} 29. e8=Q+ {[%clk
0:01:16.5]} 29... Rxe8 {[%clk 0:00:23.5]} 30. Rxe8+ {[%clk 0:01:16.7]} 30... Kf7
{[%clk 0:00:25.4]} 31. Rc8 {[%clk 0:01:17.2]} 31... Bb3 {[%clk 0:00:26.6]} 32.
Rc7+ {[%clk 0:01:16.8]} 32... Kf8 {[%clk 0:00:27.2]} 33. a5 {[%clk 0:01:17.4]}
33... Bc2 {[%clk 0:00:28.5]} 34. c4 {[%clk 0:01:18.4]} 34... Bd3 {[%clk
0:00:29.8]} 35. f3 {[%clk 0:01:19.6]} 35... g5 {[%clk 0:00:30.6]} 36. Kf2 {[%clk
0:01:20.9]} 36... Ke8 {[%clk 0:00:31.1]} 37. Ke3 {[%clk 0:01:21.7]} 37... Bf1
{[%clk 0:00:32.1]} 38. g3 {[%clk 0:01:22.9]} 38... Kd8 {[%clk 0:00:33.3]} 39.
Rc6 {[%clk 0:01:24.1]} 39... Kd7 {[%clk 0:00:33.9]} 40. Rxa6 {[%clk 0:01:24.7]}
40... Bxc4 {[%clk 0:00:34.6]} 41. Rxh6 {[%clk 0:01:25.3]} 41... Ke7 {[%clk
0:00:35.9]} 42. Rg6 {[%clk 0:01:25.3]} 42... g4 {[%clk 0:00:36]} 43. Rxg4 {[%clk
0:01:26.2]} 43... Kf6 {[%clk 0:00:37.9]} 44. Rxc4 {[%clk 0:01:26.9]} 44... Kg5
{[%clk 0:00:39.8]} 45. Rf4 {[%clk 0:01:27.8]} 45... Kh5 {[%clk 0:00:41.7]} 1-0